Cogmind - Beta 14 @@@ ROGUE MODE // 2024.11.13 @ 20:42:33 Player: TempBlind Result: Destroyed by Y-45 Defender with Beam Rifle Performance ------------- Evolutions (1) 500 Regions Visited (2) 400 Robots Destroyed (42) 210 Value Destroyed (1112) 1112 Prototype IDs (0) 0 Alien Tech Used (0) 0 Bonus (24) 24 TOTAL SCORE: 2246 Bonus ------- High Alert Combat Kills 24 Cogmind --------- Core Integrity 0/400 Matter 205/300 Energy 275/275 System Corruption 5% Temperature Cool (9) Movement Walking (120) Location -9/Materials Parts ------- > --- POWER (2) -------- Ion Engine Light Ion Engine > --- PROPULSION (2) --- Aluminum Leg Aluminum Leg > --- UTILITY (3) ------ Medium Storage Unit Seismic Detector Utility Shielding > --- WEAPON (2) ------- (None) > --- INVENTORY (10) --- Ion Engine Aluminum Leg Core Shielding Peak State ------------ > --- POWER ------------ Ion Engine Ion Engine > --- PROPULSION ------- Aluminum Leg Aluminum Leg > --- UTILITY ---------- Medium Storage Unit Improved Terrain Scanner Seismic Detector > --- WEAPON ----------- Grenade Launcher Grenade Launcher > --- INVENTORY -------- Ion Engine Aluminum Leg Core Shielding Utility Shielding Grenade Launcher [Rating: 11] Favorites ----------- Power Ion Engine Engine Ion Engine Propulsion Aluminum Leg Leg Aluminum Leg Utility Improved Terrain Scanner Device Improved Terrain Scanner Storage Medium Storage Unit Protection Utility Shielding Weapon Grenade Launcher Energy Gun EM Pulse Gun Ballistic Gun Light Assault Rifle Launcher Grenade Launcher Build | -11 -10 -9 ------- Run | Yrd Mat Mat Slots Evolved 2 | . . 2 Power 1 | . . 1 Propulsion . | . . . Utility 1 | . . 1 Weapon . | . . . Parts Attached 41 | 7 15 19 Power 7 | 1 2 4 Engine 7 | 1 2 4 Core . | . . . Reactor . | . . . Propulsion 12 | 2 6 4 Treads . | . . . Leg 12 | 2 6 4 Wheel . | . . . Hover . | . . . Flight . | . . . Utility 8 | 2 3 3 Device 5 | 2 1 2 Storage 2 | . 2 . Processor . | . . . Hackware . | . . . Protection 1 | . . 1 Artifact . | . . . Weapon 14 | 2 4 8 Energy Gun 3 | 2 . 1 Energy Cannon . | . . . Ballistic Gun 3 | . . 3 Ballistic Cannon . | . . . Launcher 8 | . 4 4 Special Weapon . | . . . Impact Weapon . | . . . Slashing Weapon . | . . . Piercing Weapon . | . . . Special Melee Weapon . | . . . Unidentified Prototypes . | . . . Parts Lost 20 | . 6 14 Power 2 | . . 2 Propulsion 8 | . 4 4 Utility 1 | . . 1 Weapon 9 | . 2 7 Highest Loss Streak 11 | . 2 11 To Critical Strikes . | . . . Average Slot Usage (%) 92 | . 96 78 Engine 14 | . 14 18 Leg 23 | . 25 16 Device 16 | . 17 9 Storage 10 | . 10 11 Protection 2 | . . 11 Energy Gun 3 | . 4 1 Launcher 19 | . 22 8 Peak Build Rating 11 | 9 9 11 Average Rating 8 | 4 8 8 On Entrance 6 | . 9 9 Naked Turns . | . . . Heaviest Build 90 | 9 90 28 Greatest Support 20 | 20 20 20 Greatest Overweight (x) 7 | . 4 7 Average Overweight (x) . | . . 1 Largest Inventory Capacity 25 | 5 25 10 Average Capacity 8 | 5 8 10 Most Carried 7 | 2 7 7 Average Carried 4 | . 4 3 Final Capacity 10 | 5 10 10 Final Carried 7 | 2 7 3 Class Distribution -------------------- 95% | Mutant 4% | Scavenger-Mutant Dominant Class ---------------- Mutant | -10/Materials Mutant | -9/Materials Resources | -11 -10 -9 ----------- Run | Yrd Mat Mat Matter Collected 879 | 260 276 343 Remotely . | . . . Salvage Created 1147 | 35 604 508 Parts 67 | 2 29 36 Haulers Intercepted . | . . . Recyclers Shooed 1 | . . 1 Parts Field Recycled . | . . . Retrieved Matter . | . . . Parts Self-Destructed . | . . . Prevented . | . . . Kills | -11 -10 -9 ------- Run | Yrd Mat Mat Combat Hostiles Destroyed 30 | 1 16 13 Guns 5 | 1 2 2 AOE 24 | . 13 11 Classes Destroyed 7 | 1 4 2 Worker 2 | . 2 . Builder 5 | . 2 3 Recycler 4 | . 1 3 Watcher 1 | . 1 . Swarmer 4 | . . 4 Grunt 25 | 1 16 8 Brawler 1 | . . 1 Best Kill Streak 8 | 1 6 8 Combat Bots Only 6 | 1 5 6 Max Kills in Single Turn 4 | 1 2 4 Gunslinging . | . . . Exploded 4 | . 1 4 Melee . | . . . Uniques/NPCs Destroyed . | . . . Combat | -11 -10 -9 -------- Run | Yrd Mat Mat Hostile Shots Fired 259 | 5 69 185 Missed 80 | 1 18 61 Damage Taken 2434 | 46 907 1481 Core 614 | 11 194 409 Absorbed by Shields . | . . . Redirected to Shielding 41 | . . 41 Core Remaining (%) 56 | 95 18 . Volleys Fired 83 | 4 54 25 Largest 2 | 2 2 2 Hottest 90 | 90 90 60 Shots Fired 118 | 8 77 33 Gun 70 | 8 45 17 Cannon . | . . . Launcher 48 | . 32 16 Special . | . . . Kinetic 12 | . . 12 Thermal 14 | 4 10 . Explosive 48 | . 32 16 Electromagnetic 44 | 4 35 5 Robot Hit Streak 11 | 3 5 11 Robot Miss Streak 3 | 1 3 3 Penetration Max . | . . . Secondary Targets . | . . . Shots Hit Robots 60 | 6 37 17 Core Hits 72 | 2 38 32 Critical Kills . | . . . Critical Parts Destroyed . | . . . Critical Strikes 3 | 1 2 . Burn 2 | 1 1 . Corrupt 1 | . 1 . Melee Attacks . | . . . Impact . | . . . Slashing . | . . . Piercing . | . . . Sneak Attacks . | . . . Combat Hostiles . | . . . Follow-up Attacks . | . . . Damage Inflicted 2667 | 74 1696 897 Guns 582 | 74 360 148 Cannons . | . . . Explosions 2068 | . 1336 732 Melee . | . . . Ramming 17 | . . 17 Kinetic 91 | . . 91 Thermal 280 | 50 175 55 Explosive 1938 | . 1261 677 Electromagnetic 341 | 24 260 57 Impact . | . . . Slashing . | . . . Piercing . | . . . Highest Corruption 5 | . . 5 Average Corruption 3 | . . 3 Corruption Purged . | . . . Corruption Blocked . | . . . Effects 4 | . . 4 Message Errors 4 | . . 4 Overload Shots . | . . . Overflow Damage 142 | . 98 44 Projectiles . | . . . Explosions 142 | . 98 44 Melee . | . . . Knockbacks . | . . . Impact . | . . . Kinetic . | . . . Secondary . | . . . Self-Inflicted Damage 417 | . 275 142 Shots 18 | . 12 6 Rammed . | . . . Targets Rammed 11 | . . 11 Kicked 11 | . . 11 Crushed . | . . . Highest Temperature 264 | 138 264 64 Average Temperature 62 | 73 72 19 Received Heat Transfer 975 | 24 336 615 Effects 1 | . 1 . Interference 1 | . 1 . Siege Activations . | . . . Robots Corrupted 1 | . 1 . Combat Hostiles 1 | . 1 . Parts Fried 3 | . 2 1 Impact Corruptions . | . . . Robots Melted . | . . . Combat Hostiles . | . . . Parts Melted 2 | . 2 . Heat Transferred 742 | 222 420 100 Parts Sabotaged . | . . . Parts Stolen . | . . . Parts Stripped . | . . . Power Chain Reactions 2 | . 1 1 Alert | -11 -10 -9 ------- Run | Yrd Mat Mat Peak Influence 424 | 20 424 417 Initial 135 | . 13 135 Average 258 | 10 276 313 Maximum Alert Level 2 | . 2 2 Low Security (%) 30 | 100 24 18 Level 1 43 | . 44 59 Level 2 25 | . 30 22 Level 3 . | . . . Level 4 . | . . . Level 5 . | . . . High Security . | . . . Max Security . | . . . Squads Dispatched 8 | . 5 3 Investigation 5 | . 4 1 Extermination . | . . . Reinforcement 3 | . 1 2 Assault . | . . . Garrison . | . . . Intercept . | . . . Searches Triggered . | . . . Construction Impeded 1 | . . 1 Haulers Reinforced . | . . . Active Scanning Responses . | . . . Cargo Convoy Interrupts . | . . . Stealth | -11 -10 -9 --------- Run | Yrd Mat Mat Distress Signals 4 | . 3 1 Communications Jammed . | . . . Distress Signals . | . . . Times Spotted 42 | 1 23 18 Peak Tracking Total 6 | 1 4 6 Tactical Retreats . | . . . Traps | -11 -10 -9 ------- Run | Yrd Mat Mat Traps Triggered 6 | . 6 . Indirectly . | . . . Trap Hack Attempts . | . . . Triggered . | . . . Disarmed . | . . . Reprogrammed . | . . . Reused . | . . . Traps Extracted . | . . . Installed . | . . . Triggered . | . . . Machines | -11 -10 -9 ---------- Run | Yrd Mat Mat Machines Disabled 8 | . 8 . Max in Single Turn 2 | . 2 . Machines Repaired . | . . . Machines Dismantled . | . . . Machines Sabotaged . | . . . Overloaded Fab Kills . | . . . Hacking | -11 -10 -9 --------- Run | Yrd Mat Mat Machines Accessed 7 | . 6 1 Terminals 4 | . 4 . Fabricators . | . . . Repair Stations 1 | . 1 . Recycling Units 1 | . 1 . Scanalyzers 1 | . . 1 Garrison Access . | . . . Total Hacks 15 | . 12 3 Successful 14 | . 11 3 Failed 1 | . 1 . Catastrophic . | . . . Database Lockouts . | . . . Manual . | . . . Terminals 8 | . 8 . Fabricators . | . . . Repair Stations 3 | . 3 . Recycling Units 1 | . 1 . Scanalyzers 3 | . . 3 Garrison Access . | . . . Terminal Hacks 8 | . 8 . Record 6 | . 6 . Alert Level 1 | . 1 . Zone Layout 1 | . 1 . Fabricator Hacks . | . . . Repair Station Hacks 2 | . 2 . Scan Component 1 | . 1 . Repair 1 | . 1 . Recycling Unit Hacks 1 | . 1 . Report Inventory 1 | . 1 . Scanalyzer 3 | . . 3 Insert Component 1 | . . 1 Analyze 2 | . . 2 Garrison Access Hacks . | . . . Unauthorized Hacks . | . . . Terminals . | . . . Fabricators . | . . . Repair Stations . | . . . Recycling Units . | . . . Scanalyzers . | . . . Garrison Access . | . . . Data Cores Recovered . | . . . Used . | . . . Hacking Detections 5 | . 4 1 Full Trace Events 1 | . . 1 Feedback Events 1 | . . 1 Corruption 1 | . . 1 Feedback Blocked . | . . . Robot Schematics Acquired . | . . . Robots Built . | . . . Authchips . | . . . Time . | . . . Total Robot Build Rating . | . . . Part Schematics Acquired 1 | . . 1 Parts Built . | . . . Authchips . | . . . Time . | . . . Total Part Build Rating . | . . . Parts Repaired 1 | . 1 . Time 36 | . 36 . Parts Recycled . | . . . Recycled Matter . | . . . Retrieved Matter . | . . . Retrieved Components . | . . . Parts Scanalyzed 1 | . . 1 Part Schematics Acquired 1 | . . 1 Parts Damaged . | . . . Bothacking | -11 -10 -9 ------------ Run | Yrd Mat Mat Used RIF Installer . | . . . Robots Hacked . | . . . Non-combat . | . . . Combat . | . . . Robot Hacks Applied . | . . . Relay Couplers Released . | . . . Fabnet Peak Effective % . | . . . Robots Rewired . | . . . Allies Hacked . | . . . Hacks Repelled . | . . . Allies | -11 -10 -9 -------- Run | Yrd Mat Mat Total Allies . | . . . Largest Group . | . . . Highest-Rated Group . | . . . Highest-Rated Ally . | . . . Total Orders . | . . . Ally Attacks . | . . . Total Damage . | . . . Kills . | . . . Allies Corrupted . | . . . Allies Melted . | . . . Intel | -11 -10 -9 ------- Run | Yrd Mat Mat Robot Analysis Total . | . . . Derelict Logs Recovered . | . . . Drone Launches . | . . . Drone Recoveries . | . . . Exploration | -11 -10 -9 ------------- Run | Yrd Mat Mat Turns Passed 1879 | 178 1341 360 Spaces Moved 926 | 111 669 146 Core 31 | 18 . 13 Treads . | . . . Legs 895 | 93 669 133 Wheels . | . . . Hover . | . . . Flight . | . . . Fastest Speed 50 | 50 120 120 Average Speed 162 | 108 168 175 Slowest Speed 400 | 120 400 400 Overloaded Moves . | . . . Propulsion Burnouts . | . . . Robots Hopped . | . . . Cave-ins Triggered . | . . . Exploration Rate (%) 39 | 7 92 18 Regions Visited 2 Branch Regions . Pre-discovered Areas . | . . . Known Exits Taken . | . . . Unknown Exits Taken 2 | 1 1 . Scrap Searched . | . . . Spaces Dug . | . . . Terrain Destroyed 254 | . 168 86 Melee . | . . . Projectile . | . . . AOE 254 | . 168 86 Terrain Rammed . | . . . Walls Destroyed . | . . . Machines Disabled . | . . . Actions | -11 -10 -9 --------- Run | Yrd Mat Mat Total 1167 | 157 804 206 Wait 79 | 32 47 . Move 924 | 110 668 146 Hop . | . . . Pick Up 15 | 3 10 2 Fast Attach 24 | 7 9 8 Attach 11 | . 2 9 Detach 5 | . 2 3 Swap 6 | . 4 2 Drop 9 | 1 8 . Fire 83 | 4 54 25 Melee . | . . . Ram . | . . . Kick 11 | . . 11 Crush . | . . . Escape Stasis . | . . . Rewire . | . . . Trap . | . . . Miscellaneous . | . . . Route ------- -11/Scrapyard -10/Materials (discovered 3 exits: *Mat x2 / [*Min]) -9/Materials (discovered 1 exit: [*Min]) History --------- Turn | Location | Event 2 | -11/Scrapyard | Met Revision 17 71 | -11/Scrapyard | Discovered new exit (range 8) 179 | -11/Scrapyard | Entered Materials 281 | -10/Materials | Discovered new exit (range 8) 310 | -10/Materials | Build established: Mutant 393 | -10/Materials | Core integrity fell below 50% 861 | -10/Materials | Discovered new exit (range 15) 1056 | -10/Materials | Discovered new exit (range 14) 1296 | -10/Materials | Core integrity fell below 20% 1469 | -10/Materials | Repaired Corrupted Aluminum Leg 1520 | -10/Materials | Entered another Materials area 1520 | -9/Materials | Evolved 2 slots: Power x1, Utility x1 1695 | -9/Materials | Core integrity fell below 50% 1715 | -9/Materials | Discovered new exit (range 16) 1723 | -9/Materials | Core integrity fell below 20% 1757 | -9/Materials | Lost 11 parts (2p2n1u6w) 1880 | -9/Materials | Destroyed by Y-45 Defender with Beam Rifle Last Messages --------------- K-01 Serf destroyed. U-05 Engineer lays Concrete. Aluminum Leg destroyed. ALERT: Hostiles spotted, dispatching reinforcements to Terminal M006. OCZ0IP5Y5QIIAVZFFWJ< 8X2CLSAM%QUYZ4WF J8DOA W-16 Scout sends out distress signal. Acquired Aluminum Leg. Acquired 29 matter. Acquired 35 matter. Acquired Ion Engine. EM Shotgun destroyed. QXGMIOH FTPAS4PXPJ/X JH34M Map ----- +----------------------------------------------------+ | ???######?# ########????????????????? | | ???# # # #????????????????? | | ???# """ # # """#????????????????? | | ???# """ + + """#????????????????? | | ???# """ # # """#????????????????? | | ???# # # #????????????????? | | ???# ?# #? #????????????????? | | ???######?# #?######????????????????? | | ??????????# ###?????????????????????? | | ??????????# ""########+#####????????? | | ?########## [ #????????? | | #????????? | | #"" +????????? | | ### ""T"" #????????? | | #######+######### """"" #????????? | | ???????????# + #????????? | | ???????????# ""# #????????? | | ???????????# T"########### #????????? | | ???????????# ""#??# # #????????? | | ???????????# #??# """" #? #????????? | | ???????????####+#??# """" #???????????? | | ??????????????# #??# """" #??#????????? | | ??????????????# #??? #? +????????? | | ????????????### ##???? # #????????? | | ????????????# #######+## #????????? | | ????????????+ o g @ #????????? | | ????????????# Y g #????????? | | ????????????# #######+## +????????? | | ????????????######???? # #????????? | | ???????????????????? """#? #????????? | | ???????????????????# R"#??#????????? | | ???????????????????# """#???????????? | | ???????????????????# #???????????? | | ???????????????????# #???????????? | | ???????????????????#######????????????? | | ??????????????????????????????????????? | | | | | | | | | | | | | | | | | | | | | | | | | | | | | +----------------------------------------------------+ Best States ------------- Heat Dissipation 28 Energy Generation 15 Energy Capacity 400 Matter Stores 300 Matter Capacity 300 Sight Range 16 Terrain Scan Range 16 Terrain Scan Density 10 Utility Shielding 33 Evasion (%) 55 Item Schematics ----------------- Aluminum Leg | -9/Materials | Scanalyzed Robot Schematics ------------------ None Fabricated ------------ Nothing Alien Tech Used ----------------- None Achievements -------------- Let's See Who's Tougher One Hack Too Far Remodeling Challenges ------------ None Game ------ Seed SurveybotVariableArchive Manual? 0 Play Time 00:29:25 Cumulative 2.2 hours Start 2024.11.13 @ 07:21:21 End 2024.11.13 @ 20:42:33 Sessions 9 Manual Loads 0 Difficulty Rogue Special Mode None Game No. 2 Rogue 2 Adventurer 0 Explorer 0 Win Type - Total 0 Types 0/0/0/0/0/0/0/0/0 Lore% 5 Gallery% 4 Achievement% 7 Wizard Run 0 Options --------- Layout 1 ASCII 0 Keyboard 0 Movement Numpad Keybinds 0 Fullscreen 2 Font 24/Smallcaps Map View 50x35 Zoom Use 0% Tactical HUD 0 Map Filters NONE Filters NONE Steam 1 RUN: 6d6e5e74-dc81-4e70-a128-37582da1f3b9